fUSD/lending_fUSD_20250911
["ID","MTS","AMOUNT","RATE_DAILY","PERIOD"]
[384924566,1757627485416,-400.0,0.00027945,7]
[384924567,1757627485426,-1664.51,0.00027945,7]
[384924568,1757627485435,-400.0,0.00027945,7]
[384924569,1757627485443,-400.0,0.00027945,7]
[384924570,1757627485452,-1145.88,0.00027945,7]
[384924571,1757627485462,-2668.52,0.00027945,7]
[384924572,1757627485473,-400.0,0.00027945,7]
[384924573,1757627485484,-1418.74,0.00027945,7]
[384924574,1757627485494,-400.0,0.00027945,7]
[384924575,1757627485503,-1033.62,0.00027945,7]
[384924576,1757627485515,-400.0,0.00027945,7]
[384924577,1757627485524,-400.0,0.00027945,7]
[384924578,1757627485534,-857.22,0.00027945,7]
[384924579,1757627485543,-400.0,0.00027945,7]
[384924580,1757627485553,-400.0,0.00027945,7]
[384924581,1757627485562,-400.0,0.00027945,7]
[384924582,1757627485571,-1785.27,0.00027945,7]
[384924583,1757627485580,-1768.54,0.00027945,7]
[384924584,1757627485590,-3561.21,0.00027945,7]
[384924585,1757627485599,-400.0,0.00027945,7]
[384924586,1757627485608,-1525.18,0.00027945,7]
[384924587,1757627485617,-412.28,0.00027945,7]
[384924588,1757627485629,-400.0,0.00027945,7]
[384924589,1757627485640,-1709.68,0.00027945,7]
[384924590,1757627485649,-400.0,0.00027945,7]
[384924591,1757627485659,-440.38,0.00027945,7]
[384924592,1757627485669,-2318.27,0.00027945,7]
[384924593,1757627485678,-400.0,0.00027945,7]
[384924594,1757627485687,-1281.61,0.00027945,7]
[384924595,1757627485696,-400.0,0.00027945,7]
[384924596,1757627485706,-2011.65,0.00027945,7]
[384924597,1757627485715,-1166.63,0.00027945,7]
[384924598,1757627485724,-746.18,0.00027945,7]
[384924599,1757627485733,-400.0,0.00027945,7]
[384924600,1757627485743,-400.0,0.00027945,7]
[384924601,1757627485753,-400.0,0.00027945,7]
[384924602,1757627485762,-1306.49,0.00027945,7]
[384924603,1757627485771,-1825.7,0.00027945,7]
[384924604,1757627485780,-762.39,0.00027945,7]
[384924605,1757627485789,-400.0,0.00027945,7]
[384924606,1757627485798,-3800.69,0.00027945,7]
[384924607,1757627485807,-2183.28,0.00027945,7]
[384924608,1757627485816,-631.92,0.00027945,7]
[384924609,1757627485826,-2113.02,0.00027945,7]
[384924610,1757627485835,-412.34,0.00027945,7]
[384924611,1757627485844,-400.0,0.00027945,7]
[384924612,1757627485853,-478.43,0.00027945,7]
[384924613,1757627485862,-764.83,0.00027945,7]
[384924614,1757627485871,-400.0,0.00027945,7]
[384924615,1757627485880,-658.91,0.00027945,7]
[384924616,1757627485890,-2212.12,0.00027945,7]
[384924617,1757627485899,-400.0,0.00027945,7]
[384924618,1757627485908,-400.0,0.00027945,7]
[384924619,1757627485917,-1409.6,0.00027945,7]
[384924620,1757627485927,-2621.3,0.00027945,7]
[384924621,1757627485936,-1935.52,0.00027945,7]
[384924622,1757627485945,-400.0,0.00027945,7]
[384924623,1757627485955,-792.93,0.00027945,7]
[384924624,1757627485964,-1641.57,0.00027945,7]
[384924625,1757627485973,-400.0,0.00027945,7]
[384924626,1757627485982,-2511.53,0.00027945,7]
[384924627,1757627485992,-400.0,0.00027945,7]
[384924628,1757627486001,-400.0,0.00027945,7]
[384924629,1757627486010,-415.19,0.00027945,7]
[384924630,1757627486019,-336.71139587,0.00027945,7]
[384924631,1757627486028,-400.0,0.00027945,7]
[384924632,1757627486036,-935.63,0.00027945,7]
[384924633,1757627486045,-1999.25,0.00027945,7]
[384924634,1757627486055,-400.0,0.00027945,7]
[384924635,1757627486064,-400.0,0.00027945,7]
[384924636,1757627486073,-302.48,0.00027945,7]
[384924637,1757627486082,-1937.06,0.00027945,7]
[384924638,1757627486091,-561.05,0.00027945,7]
[384924639,1757627486100,-622.55,0.00027945,7]
[384924640,1757627486110,-605.95,0.00027945,7]
[384924641,1757627486119,-625.67,0.00027945,7]
[384924642,1757627486128,-2434.87,0.00027945,7]
[384924643,1757627486136,-1967.02,0.00027945,7]
[384924644,1757627486146,-474.52583869,0.00027945,7]
[384924645,1757627486155,-2064.83,0.00027945,7]
[384924646,1757627486164,-5081.16,0.00027945,7]
[384924647,1757627486173,-400.0,0.00027945,7]
[384924648,1757627486184,-2357.52,0.00027945,7]
[384924649,1757627486193,-1918.79,0.00027945,7]
[384924650,1757627486203,-688.97,0.00027945,7]
[384924651,1757627486214,-2563.41,0.00027945,7]
[384924652,1757627486224,-400.0,0.00027945,7]
[384924653,1757627486234,-400.0,0.00027945,7]
[384924654,1757627486243,-1782.99,0.00027945,7]
[384924655,1757627486252,-1378.05,0.00027945,7]
[384924656,1757627486262,-400.0,0.00027945,7]
[384924657,1757627486272,-2353.03,0.00027945,7]
[384924658,1757627486281,-752.99,0.00027945,7]
[384924659,1757627486291,-1193.85,0.00027945,7]
[384924660,1757627486300,-400.0,0.00027945,7]
[384924661,1757627486312,-1178.69,0.00027945,7]
[384924662,1757627486321,-1935.24,0.00027945,7]
[384924663,1757627486331,-400.0,0.00027945,7]
[384924664,1757627486340,-1221.61,0.00027945,7]
[384924665,1757627486350,-400.0,0.00027945,7]
[384924666,1757627486359,-429.41,0.00027945,7]
[384924667,1757627486368,-459.96,0.00027945,7]
[384924668,1757627486378,-407.17367008,0.00027945,7]
[384924669,1757627486387,-400.0,0.00027945,7]
[384924670,1757627486396,-2252.22,0.00027945,7]
[384924671,1757627486405,-735.02,0.00027945,7]
[384924672,1757627486414,-1279.89,0.00027945,7]
[384924673,1757627486424,-400.0,0.00027945,7]
[384924674,1757627486434,-288.66480249,0.00027945,7]
[384924675,1757627486443,-2407.5,0.00027945,7]
[384924676,1757627486453,-2161.65,0.00027945,7]
[384924677,1757627486463,-1425.68,0.00027945,7]
[384924678,1757627486472,-1362.92,0.00027945,7]
[384924679,1757627486482,-400.0,0.00027945,7]
[384924680,1757627486492,-1095.6,0.00027945,7]
[384924681,1757627486501,-2476.85,0.00027945,7]
[384924682,1757627486511,-1991.02,0.00027945,7]
[384924683,1757627486520,-2430.43,0.00027945,7]
[384924684,1757627486530,-400.0,0.00027945,7]
[384924685,1757627486539,-400.0,0.00027945,7]
[384924686,1757627486548,-400.0,0.00027945,7]
[384924687,1757627486557,-465.81,0.00027945,7]
[384924688,1757627486567,-207.5394105,0.00027945,7]
[384924689,1757627486576,-400.0,0.00027945,7]
[384924690,1757627486587,-2085.01,0.00027945,7]
[384924691,1757627486596,-2781.72,0.00027945,7]
[384924692,1757627486607,-1977.7,0.00027945,7]
[384924693,1757627486617,-400.0,0.00027945,7]
[384924694,1757627486626,-2696.49,0.00027945,7]
[384924695,1757627486636,-400.0,0.00027945,7]
[384924696,1757627486647,-430.58,0.00027945,7]
[384924697,1757627486658,-3938.86,0.00027945,7]
[384924698,1757627486668,-2712.62,0.00027945,7]
[384924699,1757627486678,-400.0,0.00027945,7]
[384924700,1757627486687,-4392.91,0.00027945,7]
[384924701,1757627486697,-400.0,0.00027945,7]
[384924702,1757627486706,-400.0,0.00027945,7]
[384924703,1757627486715,-1492.88,0.00027945,7]
[384924704,1757627486724,-400.0,0.00027945,7]
[384924705,1757627486734,-1464.34,0.00027945,7]
[384924706,1757627486744,-427.05190984,0.00027945,7]
[384924707,1757627486753,-400.0,0.00027945,7]
[384924708,1757627486763,-400.0,0.00027945,7]
[384924709,1757627486773,-591.66,0.00027945,7]
[384924710,1757627486783,-400.0,0.00027945,7]
[384924711,1757627486794,-400.0,0.00027945,7]
[384924712,1757627486806,-666.94,0.00027945,7]
[384924713,1757627486816,-400.0,0.00027945,7]
[384924714,1757627486827,-1806.44,0.00027945,7]
[384924715,1757627486837,-3486.94,0.00027945,7]
[384924716,1757627486847,-400.0,0.00027945,7]
[384924717,1757627486858,-3388.27,0.00027945,7]
[384924718,1757627486868,-1981.45,0.00027945,7]
[384924719,1757627486878,-2436.65,0.00027945,7]
[384924720,1757627486888,-406.24,0.00027945,7]
[384924721,1757627486898,-881.67,0.00027945,7]
[384924722,1757627486907,-400.0,0.00027945,7]
[384924723,1757627486917,-400.0,0.00027945,7]
[384924724,1757627486929,-1172.06,0.00027945,7]
[384924725,1757627486939,-780.5,0.00027945,7]
[384924726,1757627486949,-554.15,0.00027945,7]
[384924727,1757627486959,-4294.22,0.00027945,7]
[384924728,1757627486969,-2452.85,0.00027945,7]
[384924729,1757627486978,-400.0,0.00027945,7]
[384924730,1757627486988,-438.53,0.00027945,7]
[384924731,1757627486997,-604.66,0.00027945,7]
[384924732,1757627487006,-534.25,0.00027945,7]
[384924733,1757627487016,-400.0,0.00027945,7]
[384924734,1757627487027,-2886.24,0.00027945,7]
[384924735,1757627487036,-3147.12,0.00027945,7]
[384924736,1757627487047,-400.0,0.00027945,7]
[384924737,1757627487056,-400.0,0.00027945,7]
[384924738,1757627487066,-2500.66,0.00027945,7]
[384924739,1757627487075,-1752.06,0.00027945,7]
[384924740,1757627487085,-400.0,0.00027945,7]
[384924741,1757627487095,-400.0,0.00027945,7]
[384924742,1757627487105,-3110.75,0.00027945,7]
[384924743,1757627487114,-1536.25,0.00027945,7]
[384924744,1757627487124,-3514.52,0.00027945,7]
[384924745,1757627487135,-851.92,0.00027945,7]
[384924746,1757627487145,-1998.85,0.00027945,7]
[384924747,1757627487155,-2234.85,0.00027945,7]
[384924748,1757627487166,-1639.17,0.00027945,7]
[384924749,1757627487175,-2407.64,0.00027945,7]
[384924750,1757627487185,-400.0,0.00027945,7]
[384924751,1757627487195,-1046.34,0.00027945,7]
[384924752,1757627487206,-1220.02,0.00027945,7]
[384924753,1757627487217,-482.39,0.00027945,7]
[384924754,1757627487227,-2770.33,0.00027945,7]
[384924755,1757627487236,-1846.46,0.00027945,7]
[384924756,1757627487246,-436.15,0.00027945,7]
[384924757,1757627487256,-421.31377718,0.00027945,7]
[384924758,1757627487266,-400.0,0.00027945,7]
[384924759,1757627487275,-400.0,0.00027945,7]
[384924760,1757627487285,-1957.68,0.00027945,7]
[384924761,1757627487295,-2184.88,0.00027945,7]
[384924762,1757627487305,-1730.33,0.00027945,7]
[384924763,1757627487318,-1786.28,0.00027945,7]
[384924764,1757627487328,-1265.01,0.00027945,7]
[384924765,1757627487339,-407.19,0.00027945,7]
[384924766,1757627487349,-400.0,0.00027945,7]
[384924767,1757627487359,-2703.11,0.00027945,7]
[384924768,1757627487370,-688.3,0.00027945,7]
[384924769,1757627487380,-678.34,0.00027945,7]
[384924770,1757627487392,-2568.73,0.00027945,7]
[384924771,1757627487403,-3106.86,0.00027945,7]
[384924772,1757627487413,-1591.84,0.00027945,7]
[384924773,1757627487423,-400.0,0.00027945,7]
[384924774,1757627487434,-423.35,0.00027945,7]
[384924775,1757627487444,-2512.36,0.00027945,7]
[384924776,1757627487454,-400.0,0.00027945,7]
[384924777,1757627487464,-408.2988473,0.00027945,7]
[384924778,1757627487474,-2358.62,0.00027945,7]
[384924779,1757627487484,-655.76,0.00027945,7]
[384924780,1757627487494,-400.0,0.00027945,7]
[384924781,1757627487504,-655.88,0.00027945,7]
[384924782,1757627487514,-400.0,0.00027945,7]
[384924783,1757627487523,-1989.93,0.00027945,7]
[384924784,1757627487533,-400.0,0.00027945,7]
[384924785,1757627487543,-6625.15,0.00027945,7]
[384924786,1757627487553,-400.0,0.00027945,7]
[384924787,1757627487563,-1565.73,0.00027945,7]
[384924788,1757627487573,-2433.07,0.00027945,7]
[384924789,1757627487584,-400.0,0.00027945,7]
[384924790,1757627487597,-1949.62,0.00027945,7]
[384924791,1757627487606,-2320.6,0.00027945,7]
[384924792,1757627487616,-400.0,0.00027945,7]
[384924793,1757627487626,-2218.78,0.00027945,7]
[384924794,1757627487635,-3743.48,0.00027945,7]
[384924795,1757627487646,-1700.41,0.00027945,7]
[384924796,1757627487655,-581.88,0.00027945,7]
[384924797,1757627487667,-400.0,0.00027945,7]
[384924798,1757627487677,-601.83,0.00027945,7]
[384924799,1757627487687,-400.0,0.00027945,7]
[384924800,1757627487696,-400.0,0.00027945,7]
[384924801,1757627487706,-2249.08,0.00027945,7]
[384924802,1757627487716,-2332.54,0.00027945,7]
[384924803,1757627487727,-400.0,0.00027945,7]
[384924804,1757627487736,-726.15,0.00027945,7]
[384924805,1757627487746,-2742.88,0.00027945,7]
[384924806,1757627487756,-400.0,0.00027945,7]
[384924807,1757627487767,-2125.99,0.00027945,7]
[384924808,1757627487776,-877.79,0.00027945,7]
[384924809,1757627487786,-400.0,0.00027945,7]
[384924810,1757627487796,-400.0,0.00027945,7]
[384924811,1757627487806,-1691.78,0.00027945,7]
[384924812,1757627487816,-400.0,0.00027945,7]
[384924813,1757627487826,-2192.92,0.00027945,7]
[384924814,1757627487836,-2438.57,0.00027945,7]
[384924815,1757627487846,-1723.17,0.00027945,7]
[384924816,1757627487856,-2371.58,0.00027945,7]
[384924817,1757627487865,-882.4,0.00027945,7]
[384924818,1757627487875,-400.0,0.00027945,7]
[384924819,1757627487885,-2985.19,0.00027945,7]
[384924820,1757627487895,-2972.96,0.00027945,7]
[384924821,1757627487905,-849.58,0.00027945,7]
[384924822,1757627487915,-512.39,0.00027945,7]
[384924823,1757627487925,-3150.88,0.00027945,7]
[384924824,1757627487935,-400.0,0.00027945,7]
[384924825,1757627487944,-2678.71,0.00027945,7]
[384924826,1757627487954,-1003.52,0.00027945,7]
[384924827,1757627487964,-764.35,0.00027945,7]
[384924828,1757627487975,-1462.94,0.00027945,7]
[384924829,1757627487985,-2234.94,0.00027945,7]
[384924830,1757627487995,-2578.26,0.00027945,7]
[384924831,1757627488005,-411.13749241,0.00027945,7]
[384924832,1757627488015,-1828.11,0.00027945,7]
[384924833,1757627488024,-470.08,0.00027945,7]
[384924834,1757627488034,-1307.56,0.00027945,7]
[384924835,1757627488044,-400.0,0.00027945,7]
[384924836,1757627488060,-1772.99,0.00027945,7]
[384924837,1757627488070,-2097.33,0.00027945,7]
[384924838,1757627488080,-933.0,0.00027945,7]
[384924839,1757627488090,-952.28,0.00027945,7]
[384924840,1757627488104,-1662.68,0.00027945,7]
[384924841,1757627488125,-610.96,0.00027945,7]
[384924842,1757627488146,-7841.89,0.00027945,7]
[384924843,1757627488156,-400.0,0.00027945,7]
[384924844,1757627488167,-400.0,0.00027945,7]
[384924845,1757627488176,-400.0,0.00027945,7]
[384924846,1757627488187,-1587.28,0.00027945,7]
[384924847,1757627488197,-1604.78,0.00027945,7]
[384924848,1757627488207,-2174.86,0.00027945,7]
[384924849,1757627488217,-11061.06,0.00027945,7]
[384924850,1757627488227,-1272.03,0.00027945,7]
[384924851,1757627488238,-400.0,0.00027945,7]
[384924852,1757627488249,-596.32,0.00027945,7]
[384924853,1757627488259,-565.46,0.00027945,7]
[384924854,1757627488269,-400.0,0.00027945,7]
[384924855,1757627488279,-400.0,0.00027945,7]
[384924856,1757627488289,-2131.53,0.00027945,7]
[384924857,1757627488299,-403.6725145,0.00027945,7]
[384924858,1757627488311,-2498.42,0.00027945,7]
[384924859,1757627488321,-6488.57,0.00027945,7]
[384924860,1757627488331,-5525.7,0.00027945,7]
[384924861,1757627488341,-400.0,0.00027945,7]
[384924862,1757627488351,-1601.69,0.00027945,7]
[384924863,1757627488360,-455.17,0.00027945,7]
[384924864,1757627488370,-1668.79,0.00027945,7]
[384924865,1757627488380,-1352.16,0.00027945,7]
[384924866,1757627488390,-400.0,0.00027945,7]
[384924867,1757627488401,-11877.61,0.00027945,7]
[384924868,1757627488410,-2986.7,0.00027945,7]
[384924869,1757627488420,-400.0,0.00027945,7]
[384924870,1757627488430,-409.88935801,0.00027945,7]
[384924871,1757627488440,-406.16581731,0.00027945,7]
[384924872,1757627488450,-400.0,0.00027945,7]
[384924873,1757627488460,-2328.89,0.00027945,7]
[384924874,1757627488470,-4724.84,0.00027945,7]
[384924875,1757627488480,-400.0,0.00027945,7]
[384924876,1757627488490,-2071.12,0.00027945,7]
[384924877,1757627488500,-3292.32,0.00027945,7]
[384924878,1757627488509,-400.0,0.00027945,7]
[384924879,1757627488519,-400.0,0.00027945,7]
[384924880,1757627488528,-657.95,0.00027945,7]
[384924881,1757627488538,-2017.2,0.00027945,7]
[384924882,1757627488547,-2362.15,0.00027945,7]
[384924883,1757627488557,-1981.94,0.00027945,7]
[384924884,1757627488567,-914.7,0.00027945,7]
[384924885,1757627488576,-710.2,0.00027945,7]
[384924886,1757627488586,-400.0,0.00027945,7]
[384924887,1757627488596,-847.93,0.00027945,7]
[384924888,1757627488605,-1045.52,0.00027945,7]
[384924889,1757627488615,-752.72,0.00027945,7]
[384924890,1757627488624,-2021.8,0.00027945,7]
[384924891,1757627488634,-400.0,0.00027945,7]
[384924892,1757627488643,-2367.19,0.00027945,7]
[384924893,1757627488653,-1922.67,0.00027945,7]
[384924894,1757627488663,-1204.45,0.00027945,7]
[384924895,1757627488673,-2147.9,0.00027945,7]
[384924896,1757627488682,-400.0,0.00027945,7]
[384924897,1757627488692,-737.4,0.00027945,7]
[384924898,1757627488702,-610.19,0.00027945,7]
[384924899,1757627488711,-2005.27,0.00027945,7]
[384924900,1757627488721,-2282.8,0.00027945,7]
[384924901,1757627488732,-868.86,0.00027945,7]
[384924902,1757627488742,-400.0,0.00027945,7]
[384924903,1757627488752,-403.83061852,0.00027945,7]
[384924904,1757627488762,-2067.86,0.00027945,7]
[384924905,1757627488771,-339.78,0.00027945,7]
[384924906,1757627488781,-1662.86,0.00027945,7]
[384924907,1757627488791,-400.0,0.00027945,7]
[384924908,1757627488800,-973.3,0.00027945,7]
[384924909,1757627488811,-581.46,0.00027945,7]
[384924910,1757627488821,-2104.81,0.00027945,7]
[384924911,1757627488832,-901.74,0.00027945,7]
[384924912,1757627488843,-1564.75,0.00027945,7]
[384924913,1757627488853,-3042.61,0.00027945,7]
[384924914,1757627488863,-633.32,0.00027945,7]
[384924915,1757627488872,-400.0,0.00027945,7]
[384924916,1757627488882,-406.9,0.00027945,7]
[384924917,1757627488893,-400.0,0.00027945,7]
[384924918,1757627488903,-2798.29,0.00027945,7]
[384924919,1757627488912,-825.48,0.00027945,7]
[384924920,1757627488922,-473.92,0.00027945,7]
[384924921,1757627488932,-400.0,0.00027945,7]
[384924922,1757627488942,-1232.08,0.00027945,7]
[384924923,1757627489247,-1649.61,0.00027945,7]
[384924924,1757627489256,-400.0,0.00027945,7]
[384924925,1757627489266,-400.0,0.00027945,7]
[384924926,1757627489276,-400.0,0.00027945,7]
[384924927,1757627489286,-493.86,0.00027945,7]
[384924928,1757627489296,-401.49,0.00027945,7]
[384924929,1757627489307,-2428.81,0.00027945,7]
[384924930,1757627489318,-545.25,0.00027945,7]
[384924931,1757627489328,-3292.07,0.00027945,7]
[384924932,1757627489337,-400.0,0.00027945,7]
[384924933,1757627489347,-1770.26,0.00027945,7]
[384924934,1757627489356,-400.0,0.00027945,7]
[384924935,1757627489366,-400.0,0.00027945,7]
[384924936,1757627489376,-1537.35,0.00027945,7]
[384924937,1757627489386,-575.7,0.00027945,7]
[384924938,1757627489399,-2235.0,0.00027945,7]
[384924939,1757627489409,-400.0,0.00027945,7]
[384924940,1757627489418,-400.0,0.00027945,7]
[384924941,1757627489430,-4315.46,0.00027945,7]
[384924942,1757627489440,-400.0,0.00027945,7]
[384924943,1757627489450,-2043.23,0.00027945,7]
[384924944,1757627489459,-542.72,0.00027945,7]
[384924945,1757627489470,-497.85,0.00027945,7]
[384924946,1757627489479,-400.0,0.00027945,7]
[384924947,1757627489489,-774.82,0.00027945,7]
[384924948,1757627489499,-2030.44,0.00027945,7]
[384924949,1757627489509,-400.0,0.00027945,7]
[384924950,1757627489519,-444.49,0.00027945,7]
[384924951,1757627489528,-400.0,0.00027945,7]
[384924952,1757627489538,-2457.19,0.00027945,7]
[384924953,1757627489548,-400.0,0.00027945,7]
[384924954,1757627489558,-400.0,0.00027945,7]
[384924955,1757627489568,-400.0,0.00027945,7]
[384924956,1757627489578,-2221.42,0.00027945,7]
[384924957,1757627489588,-2267.83,0.00027945,7]
[384924958,1757627489598,-400.0,0.00027945,7]
[384924959,1757627489607,-400.0,0.00027945,7]
[384924960,1757627489618,-400.0,0.00027945,7]
[384924961,1757627489628,-494.627393,0.00027945,7]
[384924962,1757627489638,-400.0,0.00027945,7]
[384924963,1757627489648,-400.0,0.00027945,7]
[384924964,1757627489663,-1381.33,0.00027945,7]
[384924965,1757627489673,-502.13700811,0.00027945,7]
[384924966,1757627489683,-400.0,0.00027945,7]
[384924967,1757627489692,-596.22,0.00027945,7]
[384924968,1757627489702,-977.79,0.00027945,7]
[384924969,1757627489712,-400.0,0.00027945,7]
[384924970,1757627489724,-2044.64,0.00027945,7]
[384924971,1757627489735,-400.0,0.00027945,7]
[384924972,1757627489745,-1597.41,0.00027945,7]
[384924973,1757627489755,-400.0,0.00027945,7]
[384924974,1757627489765,-1990.61,0.00027945,7]
[384924975,1757627489775,-1787.37,0.00027945,7]
[384924976,1757627489784,-400.0,0.00027945,7]
[384924977,1757627489794,-400.0,0.00027945,5]
[384924978,1757627489803,-400.0,0.00027945,7]
[384924979,1757627489813,-805.46369039,0.00027962,2]
[384924980,1757627489823,-615.88410899,0.00027971,2]
[384924981,1757627489832,-150.0,0.00027973,5]
[384924982,1757627489841,-150.0,0.00027973,5]
[384924983,1757627489850,-500.0,0.00027973,5]
[384924984,1757627489861,-160.0,0.00028001,2]
[384924985,1757627489871,-235.13,0.00028018,2]
[384924986,1757627489881,-160.76253676,0.00028072,7]
[384924987,1757627489891,-1425.0,0.00028086,2]
[384924988,1757627489900,-174.0,0.00028113,2]
[384924989,1757627489910,-4213.9661783,0.00028119,2]
[384924990,1757627489919,-615.88410899,0.00028119,2]
[384924991,1757627489929,-256.23390922,0.00028195,2]
[384924992,1757627489938,-204.85074,0.00028209,7]
[384924993,1757627489948,-500.0,0.00028218,7]
[384924994,1757627489959,-500.0,0.00028218,7]
[384924995,1757627489968,-500.0,0.00028218,7]
[384924996,1757627489978,-500.0,0.00028218,7]
[384924997,1757627489987,-500.0,0.00028218,7]
[384924998,1757627489996,-537.34,0.00028219,7]
[384924999,1757627490006,-400.0,0.00028219,7]
[384925000,1757627490016,-436.24,0.00028219,7]
[384925001,1757627490025,-622.97,0.00028219,7]
[384925002,1757627490035,-400.0,0.00028219,7]
[384925003,1757627490044,-400.0,0.00028219,7]
[384925004,1757627490054,-602.77,0.00028219,7]
[384925005,1757627490066,-1543.01,0.00028219,7]
[384925006,1757627490077,-400.0,0.00028219,7]
[384925007,1757627490086,-502.36,0.00028219,7]
[384925008,1757627490095,-474.04,0.00028219,7]
[384925009,1757627490104,-607.91,0.00028219,7]
[384925010,1757627490115,-400.0,0.00028219,7]
[384925011,1757627490125,-400.0,0.00028219,7]
[384925012,1757627490136,-400.0,0.00028219,7]
[384925013,1757627490146,-422.29,0.00028219,7]
[384925014,1757627490158,-521.3,0.00028219,7]
[384925015,1757627490169,-400.0,0.00028219,2]
[384925016,1757627490179,-578.72,0.00028219,7]
[384925017,1757627490190,-1554.85,0.00028219,7]
[384925018,1757627490200,-152.0,0.00028219,3]
[384925019,1757627490209,-547.0,0.00028219,3]
[384925020,1757627490219,-400.0,0.00028219,7]
[384925021,1757627490228,-400.0,0.00028219,7]
[384925022,1757627490237,-421.05107421,0.00028219,7]
[384925023,1757627490247,-400.0,0.00028219,7]
[384925024,1757627490256,-1824.84,0.00028219,7]
[384925025,1757627490265,-1088.02,0.00028219,7]
[384925026,1757627490275,-154.0,0.00028219,3]
[384925027,1757627490284,-152.0,0.00028219,3]
[384925028,1757627490294,-1205.28,0.00028219,7]
[384925029,1757627490305,-432.28,0.00028219,7]
[384925030,1757627490318,-400.0,0.00028219,7]
[384925031,1757627490328,-400.0,0.00028219,7]
[384925032,1757627490339,-400.0,0.00028219,7]
[384925033,1757627490349,-832.75,0.00028219,7]
[384925034,1757627490359,-400.0,0.00028219,7]
[384925035,1757627490368,-400.0,0.00028219,7]
[384925036,1757627490378,-400.0,0.00028219,7]
[384925037,1757627490390,-400.0,0.00028219,7]
[384925038,1757627490399,-400.0,0.00028219,7]
[384925039,1757627490409,-904.85,0.00028219,7]
[384925040,1757627490418,-400.0,0.00028219,7]
[384925041,1757627490427,-685.8,0.00028219,7]
[384925042,1757627490437,-517.06,0.00028219,7]
[384925043,1757627490447,-1008.26,0.00028219,7]
[384925044,1757627490456,-1113.46,0.00028219,7]
[384925045,1757627490465,-400.0,0.00028219,7]
[384925046,1757627490475,-655.45,0.00028219,7]
[384925047,1757627490484,-400.0,0.00028219,7]
[384925048,1757627490493,-400.0,0.00028219,7]
[384925049,1757627490503,-593.77,0.00028219,7]
[384925050,1757627490512,-807.62,0.00028219,7]
[384925051,1757627490522,-738.23,0.00028219,7]
[384925052,1757627490531,-567.18,0.00028219,7]
[384925053,1757627490540,-400.0,0.00028219,7]
[384925054,1757627490550,-400.0,0.00028219,7]
[384925055,1757627490559,-400.0,0.00028219,7]
[384925056,1757627490568,-400.0,0.00028219,7]
[384925057,1757627490577,-400.0,0.00028219,7]
[384925058,1757627490588,-464.24,0.00028219,7]
[384925059,1757627490598,-738.23,0.00028219,7]
[384925060,1757627490608,-400.0,0.00028219,7]
[384925061,1757627490619,-400.0,0.00028219,7]
[384925062,1757627490629,-213.14838272,0.00028219,7]
[384925063,1757627490638,-588.76,0.00028219,7]
[384925064,1757627490649,-607.0,0.00028219,7]
[384925065,1757627490659,-400.0,0.00028219,7]